[Event "Titled Tuesday Blitz March 01 Early 2022"]
[White "Neiksans, Arturs"]
[Black "Karttunen, Mika"]
[WhiteFideId "11601388"]
[BlackFideId "502081"]
[WhiteElo "2447"]
[BlackElo "2343"]
[Result "1-0"]
[Round "11"]
[TimeControl "180+1"]
[Date "2022.03.01"]
[WhiteClock "0:01:19"]
[BlackClock "0:00:22"]

1. e4 {[%clk 0:03:00]}  c5 {[%clk 0:02:59]} 2. Nf3 {[%clk 0:02:56]}  d6 {[%clk 0:02:59]} 3. Bb5+ {[%clk 0:02:55]}  Bd7 {[%clk 0:02:59]} 4. Bxd7+ {[%clk 0:02:55]}  Qxd7 {[%clk 0:02:59]} 5. c4 {[%clk 0:02:54]}  Nc6 {[%clk 0:02:57]} 6. d4 {[%clk 0:02:54]}  cxd4 {[%clk 0:02:55]} 7. Nxd4 {[%clk 0:02:54]}  Nf6 {[%clk 0:02:54]} 8. Nc3 {[%clk 0:02:54]}  Nxd4 {[%clk 0:02:41]} 9. Qxd4 {[%clk 0:02:53]}  g6 {[%clk 0:02:41]} 10. f3 {[%clk 0:02:50]}  Bg7 {[%clk 0:02:41]} 11. Be3 {[%clk 0:02:50]}  O-O {[%clk 0:02:40]} 12. Qd3 {[%clk 0:02:50]}  Rfc8 {[%clk 0:02:39]} 13. O-O {[%clk 0:02:47]}  Qe6 {[%clk 0:02:13]} 14. b3 {[%clk 0:02:47]}  Nd7 {[%clk 0:02:12]} 15. Rac1 {[%clk 0:02:44]}  Bxc3 {[%clk 0:02:03]} 16. Rxc3 {[%clk 0:02:43]}  a6 {[%clk 0:01:57]} 17. Rfc1 {[%clk 0:02:37]}  Rc6 {[%clk 0:01:54]} 18. Bd4 {[%clk 0:02:33]}  Rac8 {[%clk 0:01:50]} 19. Kf2 {[%clk 0:02:31]}  f6 {[%clk 0:01:46]} 20. Qe3 {[%clk 0:02:23]}  Ne5 {[%clk 0:01:43]} 21. h3 {[%clk 0:02:20]}  Nf7 {[%clk 0:01:42]} 22. Qd2 {[%clk 0:02:18]}  g5 {[%clk 0:01:29]} 23. Be3 {[%clk 0:02:18]}  Kg7 {[%clk 0:01:24]} 24. Qd5 {[%clk 0:02:15]}  Qd7 {[%clk 0:00:53]} 25. a4 {[%clk 0:02:03]}  h6 {[%clk 0:00:41]} 26. Kg1 {[%clk 0:01:52]}  e6 {[%clk 0:00:37]} 27. Qd2 {[%clk 0:01:51]}  Qe7 {[%clk 0:00:37]} 28. Bf2 {[%clk 0:01:47]}  Qc7 {[%clk 0:00:36]} 29. Bd4 {[%clk 0:01:39]}  Qa5 {[%clk 0:00:33]} 30. f4 {[%clk 0:01:31]}  gxf4 {[%clk 0:00:27]} 31. Rg3+ {[%clk 0:01:30]}  Qg5 {[%clk 0:00:28]} 32. Rxg5+ {[%clk 0:01:27]}  hxg5 {[%clk 0:00:28]} 33. Bf2 {[%clk 0:01:25]}  Ne5 {[%clk 0:00:27]} 34. Rd1 {[%clk 0:01:22]}  Kf7 {[%clk 0:00:24]} 35. Qb4 {[%clk 0:01:22]}  b5 {[%clk 0:00:22]} 36. Rxd6 {[%clk 0:01:19]} 1-0


[Site "https://www.chess.com"]

[Event "Titled Tuesday Blitz March 01 Early 2022"]
[White "Pacheco Lugo, Alejandro Jose"]
[Black "Quirke, Jeffrey"]
[WhiteFideId "3903745"]
[BlackFideId "2013029"]
[WhiteElo "2125"]
[BlackElo "2150"]
[Result "1-0"]
[Round "11"]
[TimeControl "180+1"]
[Date "2022.03.01"]
[WhiteClock "0:00:58"]
[BlackClock "0:00:01"]

1. e4 {[%clk 0:03:00]}  c5 {[%clk 0:02:59]} 2. Nf3 {[%clk 0:03:00]}  e6 {[%clk 0:03:00]} 3. d4 {[%clk 0:02:59]}  cxd4 {[%clk 0:03:00]} 4. Nxd4 {[%clk 0:03:00]}  a6 {[%clk 0:03:01]} 5. c4 {[%clk 0:03:00]}  Nf6 {[%clk 0:03:00]} 6. Nc3 {[%clk 0:03:00]}  Bb4 {[%clk 0:03:01]} 7. Qd3 {[%clk 0:02:59]}  d6 {[%clk 0:02:56]} 8. f4 {[%clk 0:02:55]}  e5 {[%clk 0:02:43]} 9. Nc2 {[%clk 0:02:46]}  Bxc3+ {[%clk 0:02:38]} 10. bxc3 {[%clk 0:02:46]}  exf4 {[%clk 0:02:30]} 11. Bxf4 {[%clk 0:02:46]}  O-O {[%clk 0:02:27]} 12. Be2 {[%clk 0:02:45]}  Re8 {[%clk 0:02:25]} 13. Bf3 {[%clk 0:02:45]}  Nc6 {[%clk 0:01:55]} 14. O-O {[%clk 0:02:37]}  Ne5 {[%clk 0:01:52]} 15. Qd4 {[%clk 0:02:37]}  Qc7 {[%clk 0:01:46]} 16. Ne3 {[%clk 0:02:36]}  Be6 {[%clk 0:01:24]} 17. Nd5 {[%clk 0:02:30]}  Bxd5 {[%clk 0:01:20]} 18. cxd5 {[%clk 0:02:31]}  Nfd7 {[%clk 0:01:20]} 19. a4 {[%clk 0:02:23]}  Rac8 {[%clk 0:01:19]} 20. Rab1 {[%clk 0:02:17]}  Qxc3 {[%clk 0:01:11]} 21. Qxc3 {[%clk 0:02:14]}  Rxc3 {[%clk 0:01:12]} 22. Rxb7 {[%clk 0:02:14]}  Ra3 {[%clk 0:01:01]} 23. Bd1 {[%clk 0:01:56]}  Nc5 {[%clk 0:00:44]} 24. Rb4 {[%clk 0:01:45]}  Ncd3 {[%clk 0:00:35]} 25. Rd4 {[%clk 0:01:41]}  Nxf4 {[%clk 0:00:33]} 26. Rxf4 {[%clk 0:01:42]}  Rb8 {[%clk 0:00:28]} 27. h3 {[%clk 0:01:40]}  g6 {[%clk 0:00:26]} 28. Kh2 {[%clk 0:01:40]}  Rb2 {[%clk 0:00:26]} 29. Rf1 {[%clk 0:01:18]}  Raa2 {[%clk 0:00:26]} 30. Rg1 {[%clk 0:01:18]}  Rd2 {[%clk 0:00:22]} 31. Rxd2 {[%clk 0:01:18]}  Rxd2 {[%clk 0:00:23]} 32. Kg3 {[%clk 0:01:18]}  a5 {[%clk 0:00:14]} 33. Bf3 {[%clk 0:01:17]}  Nxf3 {[%clk 0:00:12]} 34. gxf3 {[%clk 0:01:16]}  Ra2 {[%clk 0:00:13]} 35. Rc1 {[%clk 0:01:15]}  Rxa4 {[%clk 0:00:13]} 36. Rc6 {[%clk 0:01:16]}  Ra1 {[%clk 0:00:11]} 37. Rxd6 {[%clk 0:01:16]}  a4 {[%clk 0:00:12]} 38. Ra6 {[%clk 0:01:16]}  a3 {[%clk 0:00:12]} 39. d6 {[%clk 0:01:15]}  a2 {[%clk 0:00:08]} 40. Kf4 {[%clk 0:01:15]}  Rd1 {[%clk 0:00:08]} 41. Rxa2 {[%clk 0:01:13]}  Rxd6 {[%clk 0:00:08]} 42. Ke5 {[%clk 0:01:13]}  Rd1 {[%clk 0:00:07]} 43. Kf6 {[%clk 0:01:09]}  Rd8 {[%clk 0:00:04]} 44. e5 {[%clk 0:01:07]}  Re8 {[%clk 0:00:03]} 45. f4 {[%clk 0:01:06]}  Re6+ {[%clk 0:00:03]} 46. Kg5 {[%clk 0:01:05]}  Kg7 {[%clk 0:00:03]} 47. Ra7 {[%clk 0:01:05]}  h6+ {[%clk 0:00:04]} 48. Kg4 {[%clk 0:01:05]}  Rb6 {[%clk 0:00:03]} 49. h4 {[%clk 0:01:04]}  h5+ {[%clk 0:00:03]} 50. Kf3 {[%clk 0:00:58]}  Rc6 {[%clk 0:00:02]} 51. Ke4 {[%clk 0:00:58]}  Rb6 {[%clk 0:00:01]} 52. Kd5 {[%clk 0:00:58]} 1-0


[Site "https://www.chess.com"]

[Event "Titled Tuesday Blitz March 01 Early 2022"]
[White "Petrova, Irina"]
[Black "Jarocka, Liwia"]
[WhiteFideId "14124122"]
[BlackFideId "21807558"]
[WhiteElo "1988"]
[BlackElo "1896"]
[Result "0-1"]
[Round "11"]
[TimeControl "180+1"]
[Date "2022.03.01"]
[WhiteClock "0:00:23"]
[BlackClock "0:00:52"]

1. e4 {[%clk 0:03:00]}  c6 {[%clk 0:02:59]} 2. d4 {[%clk 0:03:00]}  d5 {[%clk 0:03:00]} 3. e5 {[%clk 0:03:00]}  Bf5 {[%clk 0:02:59]} 4. h4 {[%clk 0:03:00]}  h5 {[%clk 0:02:58]} 5. Bd3 {[%clk 0:02:57]}  Bxd3 {[%clk 0:02:58]} 6. Qxd3 {[%clk 0:02:58]}  Qa5+ {[%clk 0:02:57]} 7. Nd2 {[%clk 0:02:47]}  Qa6 {[%clk 0:02:57]} 8. e6 {[%clk 0:02:36]}  Qxd3 {[%clk 0:02:55]} 9. exf7+ {[%clk 0:02:37]}  Kxf7 {[%clk 0:02:55]} 10. cxd3 {[%clk 0:02:37]}  Nd7 {[%clk 0:02:51]} 11. Ndf3 {[%clk 0:02:37]}  e6 {[%clk 0:02:39]} 12. Ng5+ {[%clk 0:02:33]}  Ke7 {[%clk 0:02:39]} 13. b3 {[%clk 0:02:31]}  Nh6 {[%clk 0:02:39]} 14. Ba3+ {[%clk 0:02:27]}  Kf6 {[%clk 0:02:37]} 15. Bb2 {[%clk 0:02:21]}  Nf7 {[%clk 0:02:36]} 16. N1f3 {[%clk 0:02:19]}  Bb4+ {[%clk 0:02:35]} 17. Ke2 {[%clk 0:02:18]}  Nxg5 {[%clk 0:02:34]} 18. hxg5+ {[%clk 0:02:06]}  Ke7 {[%clk 0:02:33]} 19. Ne5 {[%clk 0:02:02]}  Nxe5 {[%clk 0:02:33]} 20. dxe5 {[%clk 0:02:03]}  g6 {[%clk 0:02:27]} 21. f4 {[%clk 0:02:01]}  Kd7 {[%clk 0:02:21]} 22. Rh3 {[%clk 0:01:51]}  Raf8 {[%clk 0:02:20]} 23. Ke3 {[%clk 0:01:45]}  Rf7 {[%clk 0:02:02]} 24. Rah1 {[%clk 0:01:44]}  Rhf8 {[%clk 0:02:00]} 25. Rh4 {[%clk 0:01:42]}  Bc5+ {[%clk 0:01:56]} 26. d4 {[%clk 0:01:42]}  Be7 {[%clk 0:01:56]} 27. Bc1 {[%clk 0:01:39]}  c5 {[%clk 0:01:45]} 28. Kd3 {[%clk 0:01:36]}  cxd4 {[%clk 0:01:32]} 29. g4 {[%clk 0:01:36]}  hxg4 {[%clk 0:01:26]} 30. Rxg4 {[%clk 0:01:36]}  Rc8 {[%clk 0:01:26]} 31. Kxd4 {[%clk 0:01:32]}  Rc2 {[%clk 0:01:22]} 32. a4 {[%clk 0:01:29]}  Rf2 {[%clk 0:01:17]} 33. Rh6 {[%clk 0:01:20]}  Rf3 {[%clk 0:01:16]} 34. Rxg6 {[%clk 0:01:13]}  b6 {[%clk 0:01:16]} 35. Be3 {[%clk 0:00:48]}  Bc5+ {[%clk 0:01:15]} 36. Kd3 {[%clk 0:00:48]}  Rxe3+ {[%clk 0:01:15]} 37. Kd2 {[%clk 0:00:49]}  Rxb3 {[%clk 0:01:14]} 38. Rh6 {[%clk 0:00:46]}  Rb2+ {[%clk 0:01:11]} 39. Kc3 {[%clk 0:00:45]}  Rf2 {[%clk 0:01:10]} 40. g6 {[%clk 0:00:45]}  Rg7 {[%clk 0:01:08]} 41. Rh7 {[%clk 0:00:45]}  Bf8 {[%clk 0:01:08]} 42. Kd4 {[%clk 0:00:28]}  Ke8 {[%clk 0:01:05]} 43. Ke3 {[%clk 0:00:26]}  Rf1 {[%clk 0:00:58]} 44. Ke2 {[%clk 0:00:25]}  Ra1 {[%clk 0:00:55]} 45. Rxg7 {[%clk 0:00:22]}  Bxg7 {[%clk 0:00:55]} 46. Rh4 {[%clk 0:00:22]}  Rxa4 {[%clk 0:00:54]} 47. Rh7 {[%clk 0:00:23]}  Kf8 {[%clk 0:00:54]} 48. f5 {[%clk 0:00:21]}  exf5 {[%clk 0:00:52]} 49. e6 {[%clk 0:00:22]}  Re4+ {[%clk 0:00:51]} 50. Kf3 {[%clk 0:00:23]}  Rxe6 {[%clk 0:00:52]} 51. Kf4 {[%clk 0:00:23]}  Rxg6 {[%clk 0:00:52]} 52. Kxf5 {[%clk 0:00:23]}  Rh6 {[%clk 0:00:52]} 0-1


[Site "https://www.chess.com"]

[Event "Titled Tuesday Blitz March 01 Early 2022"]
[White "Piesik, Piotr"]
[Black "Yuan, Qingyu"]
[WhiteFideId "1136194"]
[BlackFideId "8609772"]
[WhiteElo "2232"]
[BlackElo "2359"]
[Result "0-1"]
[Round "11"]
[TimeControl "180+1"]
[Date "2022.03.01"]
[WhiteClock "0:01:25"]
[BlackClock "0:00:25"]

1. Nf3 {[%clk 0:02:57]}  Nf6 {[%clk 0:03:00]} 2. g3 {[%clk 0:02:57]}  g6 {[%clk 0:03:00]} 3. Bg2 {[%clk 0:02:58]}  Bg7 {[%clk 0:03:01]} 4. O-O {[%clk 0:02:59]}  O-O {[%clk 0:03:01]} 5. d4 {[%clk 0:02:59]}  d5 {[%clk 0:03:02]} 6. c4 {[%clk 0:02:59]}  c6 {[%clk 0:03:02]} 7. Nc3 {[%clk 0:02:59]}  dxc4 {[%clk 0:03:02]} 8. a4 {[%clk 0:02:59]}  Na6 {[%clk 0:02:54]} 9. a5 {[%clk 0:02:58]}  Be6 {[%clk 0:02:41]} 10. Qa4 {[%clk 0:02:55]}  Qc8 {[%clk 0:02:24]} 11. Ne5 {[%clk 0:02:48]}  Rd8 {[%clk 0:02:20]} 12. e3 {[%clk 0:02:47]}  c5 {[%clk 0:02:13]} 13. Rd1 {[%clk 0:02:39]}  cxd4 {[%clk 0:02:12]} 14. exd4 {[%clk 0:02:39]}  Ng4 {[%clk 0:01:56]} 15. Bf4 {[%clk 0:02:36]}  Nxe5 {[%clk 0:01:52]} 16. Bxe5 {[%clk 0:02:32]}  Bxe5 {[%clk 0:01:52]} 17. dxe5 {[%clk 0:02:33]}  Nc5 {[%clk 0:01:47]} 18. Qb5 {[%clk 0:02:31]}  Qc7 {[%clk 0:01:42]} 19. f4 {[%clk 0:02:26]}  Rab8 {[%clk 0:01:32]} 20. Nd5 {[%clk 0:02:16]}  Bxd5 {[%clk 0:01:16]} 21. Bxd5 {[%clk 0:02:17]}  Nb3 {[%clk 0:00:56]} 22. Rab1 {[%clk 0:02:07]}  Nxa5 {[%clk 0:00:51]} 23. Bf3 {[%clk 0:02:03]}  Qb6+ {[%clk 0:00:47]} 24. Qxb6 {[%clk 0:02:02]}  axb6 {[%clk 0:00:48]} 25. Kf2 {[%clk 0:01:59]}  e6 {[%clk 0:00:45]} 26. Ke3 {[%clk 0:01:58]}  Kf8 {[%clk 0:00:45]} 27. Rxd8+ {[%clk 0:01:55]}  Rxd8 {[%clk 0:00:45]} 28. Be4 {[%clk 0:01:52]}  Ke7 {[%clk 0:00:44]} 29. h4 {[%clk 0:01:51]}  h5 {[%clk 0:00:44]} 30. g4 {[%clk 0:01:49]}  hxg4 {[%clk 0:00:44]} 31. Rg1 {[%clk 0:01:50]}  Rh8 {[%clk 0:00:39]} 32. Rxg4 {[%clk 0:01:50]}  Nc6 {[%clk 0:00:39]} 33. Bf3 {[%clk 0:01:43]}  Kd7 {[%clk 0:00:34]} 34. Kf2 {[%clk 0:01:37]}  Kc7 {[%clk 0:00:29]} 35. Kg3 {[%clk 0:01:36]}  Nd4 {[%clk 0:00:28]} 36. Be4 {[%clk 0:01:36]}  b5 {[%clk 0:00:26]} 37. Rg5 {[%clk 0:01:25]}  b4 {[%clk 0:00:25]} 0-1


[Site "https://www.chess.com"]

[Event "Titled Tuesday Blitz March 01 Early 2022"]
[White "Pischal, Yulia"]
[Black "Mikhalsky, Vladimir"]
[WhiteFideId "14102390"]
[BlackFideId "14144352"]
[WhiteElo "1931"]
[BlackElo "2248"]
[Result "0-1"]
[Round "11"]
[TimeControl "180+1"]
[Date "2022.03.01"]
[WhiteClock "0:00:19"]
[BlackClock "0:01:11"]

1. e4 {[%clk 0:03:00]}  c5 {[%clk 0:02:58]} 2. Nc3 {[%clk 0:03:00]}  Nc6 {[%clk 0:02:57]} 3. g3 {[%clk 0:03:00]}  g6 {[%clk 0:02:57]} 4. Bg2 {[%clk 0:03:01]}  Bg7 {[%clk 0:02:58]} 5. d3 {[%clk 0:03:02]}  d6 {[%clk 0:02:58]} 6. f4 {[%clk 0:03:02]}  e6 {[%clk 0:02:58]} 7. Nf3 {[%clk 0:03:03]}  Nge7 {[%clk 0:02:57]} 8. O-O {[%clk 0:03:02]}  Nd4 {[%clk 0:02:54]} 9. Ne2 {[%clk 0:03:00]}  Nec6 {[%clk 0:02:44]} 10. c3 {[%clk 0:02:59]}  Nxf3+ {[%clk 0:02:44]} 11. Bxf3 {[%clk 0:02:58]}  f5 {[%clk 0:02:41]} 12. Be3 {[%clk 0:02:56]}  O-O {[%clk 0:02:40]} 13. Qd2 {[%clk 0:02:54]}  Kh8 {[%clk 0:02:33]} 14. Rae1 {[%clk 0:02:52]}  e5 {[%clk 0:02:25]} 15. Bg2 {[%clk 0:02:49]}  fxe4 {[%clk 0:02:20]} 16. dxe4 {[%clk 0:02:46]}  Be6 {[%clk 0:02:16]} 17. Rd1 {[%clk 0:02:45]}  Bxa2 {[%clk 0:02:10]} 18. Qxd6 {[%clk 0:02:44]}  Nd4 {[%clk 0:02:04]} 19. Rxd4 {[%clk 0:02:27]}  cxd4 {[%clk 0:02:00]} 20. Qxd8 {[%clk 0:02:22]}  Raxd8 {[%clk 0:01:59]} 21. cxd4 {[%clk 0:02:17]}  exd4 {[%clk 0:01:59]} 22. Bd2 {[%clk 0:02:12]}  Rc8 {[%clk 0:01:53]} 23. e5 {[%clk 0:02:07]}  Rc2 {[%clk 0:01:51]} 24. Rd1 {[%clk 0:02:00]}  Rxb2 {[%clk 0:01:50]} 25. Nxd4 {[%clk 0:01:54]}  Rd8 {[%clk 0:01:50]} 26. Be3 {[%clk 0:01:54]}  Bf8 {[%clk 0:01:40]} 27. Rc1 {[%clk 0:01:45]}  b6 {[%clk 0:01:31]} 28. Nc6 {[%clk 0:00:58]}  Rd3 {[%clk 0:01:26]} 29. Bf2 {[%clk 0:00:51]}  Rdd2 {[%clk 0:01:26]} 30. Rf1 {[%clk 0:00:28]}  Bc5 {[%clk 0:01:22]} 31. e6 {[%clk 0:00:26]}  Bxf2+ {[%clk 0:01:19]} 32. Kh1 {[%clk 0:00:24]}  Bc5 {[%clk 0:01:14]} 33. e7 {[%clk 0:00:20]}  Bxe7 {[%clk 0:01:12]} 34. Nxe7 {[%clk 0:00:19]}  Rxg2 {[%clk 0:01:11]} 0-1


[Site "https://www.chess.com"]

[Event "Titled Tuesday Blitz March 01 Early 2022"]
[White "Qashashvili, Alexandre"]
[Black "Politov, Pavel Y."]
[WhiteFideId "13600842"]
[BlackFideId "24110515"]
[WhiteElo "2316"]
[BlackElo "2090"]
[Result "1/2-1/2"]
[Round "11"]
[TimeControl "180+1"]
[Date "2022.03.01"]
[WhiteClock "0:01:02"]
[BlackClock "0:00:15"]

1. e4 {[%clk 0:03:00]}  c5 {[%clk 0:02:59]} 2. Nc3 {[%clk 0:02:58]}  d6 {[%clk 0:02:58]} 3. Nf3 {[%clk 0:02:55]}  Nf6 {[%clk 0:02:58]} 4. d3 {[%clk 0:02:53]}  Nc6 {[%clk 0:02:52]} 5. Be3 {[%clk 0:02:44]}  g6 {[%clk 0:02:51]} 6. Qd2 {[%clk 0:02:44]}  Bg7 {[%clk 0:02:50]} 7. Bh6 {[%clk 0:02:44]}  O-O {[%clk 0:02:50]} 8. h4 {[%clk 0:02:44]}  Bxh6 {[%clk 0:02:35]} 9. Qxh6 {[%clk 0:02:42]}  Ng4 {[%clk 0:02:35]} 10. Qd2 {[%clk 0:02:43]}  h5 {[%clk 0:02:32]} 11. g3 {[%clk 0:02:42]}  e5 {[%clk 0:02:28]} 12. Nd5 {[%clk 0:02:40]}  Be6 {[%clk 0:02:22]} 13. Ne3 {[%clk 0:02:39]}  Nd4 {[%clk 0:02:03]} 14. Nxd4 {[%clk 0:02:32]}  cxd4 {[%clk 0:02:03]} 15. Nxg4 {[%clk 0:02:32]}  Bxg4 {[%clk 0:02:02]} 16. Be2 {[%clk 0:02:31]}  Qd7 {[%clk 0:01:54]} 17. Bxg4 {[%clk 0:02:28]}  Qxg4 {[%clk 0:01:54]} 18. Qe2 {[%clk 0:02:26]}  Qxe2+ {[%clk 0:01:53]} 19. Kxe2 {[%clk 0:02:26]}  f5 {[%clk 0:01:33]} 20. f3 {[%clk 0:02:24]}  fxe4 {[%clk 0:01:33]} 21. fxe4 {[%clk 0:02:25]}  Rac8 {[%clk 0:01:32]} 22. Rac1 {[%clk 0:02:22]}  Kf7 {[%clk 0:01:03]} 23. Rhf1+ {[%clk 0:02:07]}  Ke6 {[%clk 0:01:03]} 24. Rxf8 {[%clk 0:02:06]}  Rxf8 {[%clk 0:01:04]} 25. Rf1 {[%clk 0:02:06]}  Rxf1 {[%clk 0:00:53]} 26. Kxf1 {[%clk 0:02:06]}  d5 {[%clk 0:00:45]} 27. Ke2 {[%clk 0:02:04]}  dxe4 {[%clk 0:00:44]} 28. dxe4 {[%clk 0:02:04]}  Kd6 {[%clk 0:00:42]} 29. Kd3 {[%clk 0:02:03]}  Kc5 {[%clk 0:00:42]} 30. c3 {[%clk 0:02:02]}  dxc3 {[%clk 0:00:42]} 31. Kxc3 {[%clk 0:02:01]}  a5 {[%clk 0:00:33]} 32. a4 {[%clk 0:01:40]}  b5 {[%clk 0:00:23]} 33. b3 {[%clk 0:01:37]}  bxa4 {[%clk 0:00:19]} 34. bxa4 {[%clk 0:01:37]}  Kd6 {[%clk 0:00:19]} 35. Kd2 {[%clk 0:01:34]}  Kd7 {[%clk 0:00:18]} 36. Kc2 {[%clk 0:01:30]}  Kc7 {[%clk 0:00:18]} 37. Kd3 {[%clk 0:01:28]}  Kd6 {[%clk 0:00:18]} 38. Kd2 {[%clk 0:01:24]}  Kc6 {[%clk 0:00:17]} 39. Kc2 {[%clk 0:01:23]}  Kc5 {[%clk 0:00:16]} 40. Kc3 {[%clk 0:01:23]}  Kd6 {[%clk 0:00:15]} 41. Kd3 {[%clk 0:01:20]}  Kd7 {[%clk 0:00:14]} 42. Kc4 {[%clk 0:01:19]}  Kc6 {[%clk 0:00:14]} 43. Kb3 {[%clk 0:01:17]}  Kc7 {[%clk 0:00:15]} 44. Kc2 {[%clk 0:01:11]}  Kb6 {[%clk 0:00:15]} 45. Kd2 {[%clk 0:01:11]}  Kc7 {[%clk 0:00:14]} 46. Ke3 {[%clk 0:01:08]}  Kd6 {[%clk 0:00:15]} 47. Kd3 {[%clk 0:01:07]}  Kc7 {[%clk 0:00:16]} 48. Ke3 {[%clk 0:01:05]}  Kd6 {[%clk 0:00:15]} 49. Kd2 {[%clk 0:01:02]} 1/2-1/2


[Site "https://www.chess.com"]

[Event "Titled Tuesday Blitz March 01 Early 2022"]
[White "Reprintsev, Alexander"]
[Black "Janaszak, Dawid"]
[WhiteFideId "14100541"]
[BlackFideId "1119206"]
[WhiteElo "2126"]
[BlackElo "2199"]
[Result "0-1"]
[Round "11"]
[TimeControl "180+1"]
[Date "2022.03.01"]
[WhiteClock "0:00:53"]
[BlackClock "0:00:38"]

1. e4 {[%clk 0:02:58]}  e6 {[%clk 0:02:59]} 2. Qe2 {[%clk 0:02:58]}  e5 {[%clk 0:02:59]} 3. f4 {[%clk 0:02:55]}  d6 {[%clk 0:02:48]} 4. Nf3 {[%clk 0:02:52]}  Nc6 {[%clk 0:02:48]} 5. c3 {[%clk 0:02:51]}  Bg4 {[%clk 0:02:46]} 6. h3 {[%clk 0:02:50]}  Bxf3 {[%clk 0:02:44]} 7. Qxf3 {[%clk 0:02:50]}  Nf6 {[%clk 0:02:43]} 8. Bb5 {[%clk 0:02:49]}  Qd7 {[%clk 0:02:30]} 9. d4 {[%clk 0:02:33]}  a6 {[%clk 0:02:28]} 10. dxe5 {[%clk 0:02:24]}  axb5 {[%clk 0:02:21]} 11. exf6 {[%clk 0:02:24]}  gxf6 {[%clk 0:02:15]} 12. O-O {[%clk 0:02:23]}  O-O-O {[%clk 0:02:08]} 13. a4 {[%clk 0:02:22]}  b4 {[%clk 0:02:08]} 14. a5 {[%clk 0:02:20]}  Kb8 {[%clk 0:02:06]} 15. a6 {[%clk 0:02:20]}  b6 {[%clk 0:02:04]} 16. cxb4 {[%clk 0:02:14]}  d5 {[%clk 0:02:02]} 17. b5 {[%clk 0:02:13]}  Nd4 {[%clk 0:02:02]} 18. Qf2 {[%clk 0:01:52]}  Bc5 {[%clk 0:02:01]} 19. Be3 {[%clk 0:01:52]}  dxe4 {[%clk 0:01:56]} 20. Nc3 {[%clk 0:01:50]}  Rhg8 {[%clk 0:01:48]} 21. Kh1 {[%clk 0:01:49]}  Nf5 {[%clk 0:01:15]} 22. Bxc5 {[%clk 0:01:39]}  Ng3+ {[%clk 0:01:15]} 23. Kh2 {[%clk 0:01:35]}  Nxf1+ {[%clk 0:01:15]} 24. Rxf1 {[%clk 0:01:35]}  bxc5 {[%clk 0:01:14]} 25. Qxc5 {[%clk 0:01:34]}  Qd6 {[%clk 0:01:06]} 26. Qxd6 {[%clk 0:01:20]}  Rxd6 {[%clk 0:01:05]} 27. Nxe4 {[%clk 0:01:21]}  Rb6 {[%clk 0:01:00]} 28. Rc1 {[%clk 0:01:07]}  Rxb5 {[%clk 0:00:55]} 29. Nxf6 {[%clk 0:01:07]}  Rd8 {[%clk 0:00:52]} 30. Rc2 {[%clk 0:01:05]}  Rd6 {[%clk 0:00:47]} 31. Nxh7 {[%clk 0:01:04]}  Rxa6 {[%clk 0:00:44]} 32. Ng5 {[%clk 0:01:04]}  Rf6 {[%clk 0:00:40]} 33. Rf2 {[%clk 0:00:53]}  Rxg5 {[%clk 0:00:38]} 0-1


[Site "https://www.chess.com"]

[Event "Titled Tuesday Blitz March 01 Early 2022"]
[White "Roberson, Peter T"]
[Black "Li, Ben"]
[WhiteFideId "412384"]
[BlackFideId "2089980"]
[WhiteElo "2346"]
[BlackElo "2267"]
[Result "1-0"]
[Round "11"]
[TimeControl "180+1"]
[Date "2022.03.01"]
[WhiteClock "0:00:04"]
[BlackClock "0:00:25"]

1. e4 {[%clk 0:03:00]}  e5 {[%clk 0:02:56]} 2. Nf3 {[%clk 0:03:00]}  Nc6 {[%clk 0:02:56]} 3. Bc4 {[%clk 0:03:00]}  Bc5 {[%clk 0:02:56]} 4. O-O {[%clk 0:03:01]}  d6 {[%clk 0:02:56]} 5. c3 {[%clk 0:03:00]}  Nf6 {[%clk 0:02:56]} 6. d4 {[%clk 0:02:58]}  Bb6 {[%clk 0:02:56]} 7. dxe5 {[%clk 0:02:56]}  Nxe5 {[%clk 0:02:57]} 8. Nxe5 {[%clk 0:02:55]}  dxe5 {[%clk 0:02:58]} 9. Qxd8+ {[%clk 0:02:55]}  Kxd8 {[%clk 0:02:59]} 10. Bg5 {[%clk 0:02:44]}  Ke7 {[%clk 0:02:57]} 11. Nd2 {[%clk 0:02:40]}  h6 {[%clk 0:02:57]} 12. Bxf6+ {[%clk 0:02:39]}  gxf6 {[%clk 0:02:57]} 13. Rfe1 {[%clk 0:02:34]}  a6 {[%clk 0:02:56]} 14. Kf1 {[%clk 0:02:32]}  h5 {[%clk 0:02:54]} 15. Bb3 {[%clk 0:02:28]}  h4 {[%clk 0:02:53]} 16. Nc4 {[%clk 0:02:26]}  Bc5 {[%clk 0:02:53]} 17. Ne3 {[%clk 0:02:23]}  c6 {[%clk 0:02:52]} 18. h3 {[%clk 0:02:18]}  Be6 {[%clk 0:02:49]} 19. Rad1 {[%clk 0:02:16]}  Rad8 {[%clk 0:02:46]} 20. Nf5+ {[%clk 0:01:46]}  Ke8 {[%clk 0:02:29]} 21. Rxd8+ {[%clk 0:01:32]}  Kxd8 {[%clk 0:02:29]} 22. Rd1+ {[%clk 0:01:33]}  Ke8 {[%clk 0:02:21]} 23. Ke2 {[%clk 0:01:12]}  a5 {[%clk 0:01:56]} 24. Kf3 {[%clk 0:01:04]}  Bxf5 {[%clk 0:01:35]} 25. exf5 {[%clk 0:01:04]}  Rh5 {[%clk 0:01:35]} 26. Bc2 {[%clk 0:00:57]}  Ke7 {[%clk 0:01:36]} 27. Be4 {[%clk 0:00:51]}  Rg5 {[%clk 0:01:33]} 28. g3 {[%clk 0:00:44]}  hxg3 {[%clk 0:01:31]} 29. fxg3 {[%clk 0:00:45]}  Rg8 {[%clk 0:01:22]} 30. h4 {[%clk 0:00:42]}  Rd8 {[%clk 0:01:22]} 31. Rxd8 {[%clk 0:00:38]}  Kxd8 {[%clk 0:01:23]} 32. g4 {[%clk 0:00:29]}  Bf8 {[%clk 0:01:22]} 33. g5 {[%clk 0:00:28]}  Ke7 {[%clk 0:01:19]} 34. Kg4 {[%clk 0:00:21]}  Bg7 {[%clk 0:01:14]} 35. g6 {[%clk 0:00:14]}  fxg6 {[%clk 0:01:07]} 36. fxg6 {[%clk 0:00:14]}  Bh6 {[%clk 0:01:04]} 37. Kf5 {[%clk 0:00:13]}  Bc1 {[%clk 0:00:57]} 38. h5 {[%clk 0:00:11]}  Bh6 {[%clk 0:00:56]} 39. b4 {[%clk 0:00:07]}  axb4 {[%clk 0:00:49]} 40. cxb4 {[%clk 0:00:08]}  Bg5 {[%clk 0:00:49]} 41. a4 {[%clk 0:00:04]}  Kf8 {[%clk 0:00:35]} 42. b5 {[%clk 0:00:04]}  cxb5 {[%clk 0:00:34]} 43. axb5 {[%clk 0:00:04]}  b6 {[%clk 0:00:34]} 44. Bd5 {[%clk 0:00:05]}  Kg7 {[%clk 0:00:33]} 45. Bb3 {[%clk 0:00:04]}  Bh4 {[%clk 0:00:31]} 46. Bc2 {[%clk 0:00:04]}  Kh6 {[%clk 0:00:29]} 47. Ke6 {[%clk 0:00:03]}  Kg7 {[%clk 0:00:27]} 48. h6+ {[%clk 0:00:02]}  Kf8 {[%clk 0:00:24]} 49. g7+ {[%clk 0:00:02]}  Kg8 {[%clk 0:00:24]} 50. Bh7+ {[%clk 0:00:03]}  Kxh7 {[%clk 0:00:24]} 51. Kf7 {[%clk 0:00:03]}  Kxh6 {[%clk 0:00:25]} 52. g8=Q {[%clk 0:00:04]}  Kh5 {[%clk 0:00:25]} 53. Qg6# {[%clk 0:00:04]} 1-0


[Site "https://www.chess.com"]